fUST/lending_fUST_20251212
["ID","MTS","AMOUNT","RATE_DAILY","PERIOD"]
[398258417,1765473071090,-2222.37,0.00013698,2]
[398258418,1765473071099,-500.0,0.00013698,2]
[398258419,1765473071108,-1823.03,0.00013698,2]
[398258420,1765473071118,-740.93,0.00013698,2]
[398258421,1765473071127,-500.0,0.00013698,2]
[398258422,1765473071136,-500.0,0.00013698,2]
[398258423,1765473071146,-2279.37,0.00013698,2]
[398258424,1765473071155,-1319.35,0.00013698,2]
[398258425,1765473071165,-500.0,0.00013698,2]
[398258426,1765473071174,-572.55,0.00013698,2]
[398258427,1765473071183,-3595.68,0.00013698,2]
[398258428,1765473071193,-241.93782393,0.00013698,2]
[398258429,1765473071203,-500.0,0.00013698,2]
[398258430,1765473071213,-604.59,0.00013698,2]
[398258431,1765473071222,-635.56,0.00013698,2]
[398258432,1765473071232,-1128.13,0.00013698,2]
[398258433,1765473071241,-870.33,0.00013698,2]
[398258434,1765473071251,-1376.81,0.00013698,2]
[398258435,1765473071260,-500.0,0.00013698,2]
[398258436,1765473071269,-500.0,0.00013698,2]
[398258437,1765473071280,-500.0,0.00013698,2]
[398258438,1765473071289,-500.0,0.00013698,2]
[398258439,1765473071299,-1442.81,0.00013698,2]
[398258440,1765473071308,-500.0,0.00013698,2]
[398258441,1765473071318,-500.0,0.00013698,2]
[398258442,1765473071327,-500.0,0.00013698,2]
[398258443,1765473071336,-500.0,0.00013698,2]
[398258444,1765473071346,-500.0,0.00013698,2]
[398258445,1765473071355,-500.0,0.00013698,2]
[398258446,1765473071364,-1626.69,0.00013698,2]
[398258447,1765473071373,-2114.36,0.00013698,2]
[398258448,1765473071383,-1142.02,0.00013698,2]
[398258449,1765473071393,-1166.75,0.00013698,2]
[398258450,1765473071402,-500.0,0.00013698,2]
[398258451,1765473071412,-1326.87,0.00013698,2]
[398258452,1765473071421,-1524.16,0.00013698,2]
[398258453,1765473071431,-847.25,0.00013698,2]
[398258454,1765473071441,-500.0,0.00013698,2]
[398258455,1765473071451,-922.26,0.00013698,2]
[398258456,1765473071461,-820.02,0.00013698,2]
[398258457,1765473071472,-2189.83,0.00013698,2]
[398258458,1765473071482,-1088.15,0.00013698,2]
[398258459,1765473071492,-1543.6,0.00013698,2]
[398258460,1765473071502,-681.91,0.00013698,2]
[398258461,1765473071512,-442.92163835,0.00013698,2]
[398258462,1765473071523,-500.0,0.00013698,2]
[398258463,1765473071532,-500.0,0.00013698,2]
[398258464,1765473071542,-959.95,0.00013698,2]
[398258465,1765473071552,-500.0,0.00013698,2]
[398258466,1765473071562,-500.0,0.00013698,2]
[398258467,1765473071572,-500.0,0.00013698,2]
[398258468,1765473071582,-1538.57,0.00013698,2]
[398258469,1765473071592,-10671.61,0.00013698,2]
[398258470,1765473071602,-500.0,0.00013698,2]
[398258471,1765473071612,-500.0,0.00013698,2]
[398258472,1765473071622,-500.0,0.00013698,2]
[398258473,1765473071632,-873.52,0.00013698,2]
[398258474,1765473071642,-3357.79,0.00013698,2]
[398258475,1765473071652,-500.0,0.00013698,2]
[398258476,1765473071662,-500.0,0.00013698,2]
[398258477,1765473071672,-1731.33,0.00013698,2]
[398258478,1765473071682,-53416.15,0.00013698,2]
[398258479,1765473071692,-500.0,0.00013698,2]
[398258480,1765473071701,-500.0,0.00013698,2]
[398258481,1765473071711,-611.29249868,0.00013698,2]
[398258482,1765473071721,-910.44,0.00013698,2]
[398258483,1765473071730,-500.0,0.00013698,2]
[398258484,1765473071740,-619.61,0.00013698,2]
[398258485,1765473071750,-1181.33,0.00013698,2]
[398258486,1765473071759,-500.0,0.00013698,2]
[398258487,1765473071769,-875.86,0.00013698,2]
[398258488,1765473071780,-476.02281981,0.00013698,2]
[398258489,1765473071789,-604.4,0.00013698,2]
[398258490,1765473071799,-630.31,0.00013698,2]
[398258491,1765473071809,-8389.15,0.00013698,2]
[398258492,1765473071818,-2523.82,0.00013698,2]
[398258493,1765473071828,-500.0,0.00013698,2]
[398258494,1765473071839,-500.0,0.00013698,2]
[398258495,1765473071848,-500.0,0.00013698,2]
[398258496,1765473071858,-850.25,0.00013698,2]
[398258497,1765473071868,-2914.61,0.00013698,2]
[398258498,1765473071877,-500.0,0.00013698,2]
[398258499,1765473071887,-1104.52,0.00013698,2]
[398258500,1765473071897,-500.0,0.00013698,2]
[398258501,1765473071907,-1148.62,0.00013698,2]
[398258502,1765473071917,-1841.97,0.00013698,2]
[398258503,1765473071926,-500.0,0.00013698,2]
[398258504,1765473071936,-500.0,0.00013698,2]
[398258505,1765473071946,-500.0,0.00013698,2]
[398258506,1765473071955,-1309.83,0.00013698,2]
[398258507,1765473071966,-500.0,0.00013698,2]
[398258508,1765473071980,-950.55,0.00013698,2]
[398258509,1765473071990,-1839.66,0.00013698,2]
[398258510,1765473071999,-500.0,0.00013698,2]
[398258511,1765473072011,-500.0,0.00013698,2]
[398258512,1765473072021,-8048.24,0.00013698,2]
[398258513,1765473072030,-500.0,0.00013698,2]
[398258514,1765473072040,-1410.6,0.00013698,2]
[398258515,1765473072051,-1097.57,0.00013698,2]
[398258516,1765473072061,-500.0,0.00013698,2]
[398258517,1765473072071,-2081.19,0.00013698,2]
[398258518,1765473072080,-500.0,0.00013698,2]
[398258519,1765473072090,-1191.31,0.00013698,2]
[398258520,1765473072101,-1560.76,0.00013698,2]
[398258521,1765473072110,-500.0,0.00013698,2]
[398258522,1765473072120,-887.69,0.00013698,2]
[398258523,1765473072129,-566.01549861,0.00013698,2]
[398258524,1765473072139,-987.32,0.00013698,2]
[398258525,1765473072150,-5938.55,0.00013698,2]
[398258526,1765473072159,-500.0,0.00013698,2]
[398258527,1765473072168,-500.0,0.00013698,2]
[398258528,1765473072178,-5007.32,0.00013698,2]
[398258529,1765473072188,-1973.08,0.00013698,2]
[398258530,1765473072198,-2136.22,0.00013698,2]
[398258531,1765473072207,-2066.71,0.00013698,2]
[398258532,1765473072217,-500.0,0.00013698,2]
[398258533,1765473072227,-2108.49,0.00013698,2]
[398258534,1765473072236,-500.0,0.00013698,2]
[398258535,1765473072246,-500.0,0.00013698,2]
[398258536,1765473072256,-990.15,0.00013698,2]
[398258537,1765473072265,-17849.44,0.00013698,2]
[398258538,1765473072274,-500.0,0.00013698,2]
[398258539,1765473072284,-500.0,0.00013698,2]
[398258540,1765473072294,-500.0,0.00013698,2]
[398258541,1765473072304,-1798.0,0.00013698,2]
[398258542,1765473072313,-3449.92,0.00013698,2]
[398258543,1765473072323,-500.0,0.00013698,2]
[398258544,1765473072332,-500.0,0.00013698,2]
[398258545,1765473072343,-500.0,0.00013698,2]
[398258546,1765473072352,-4118.34,0.00013698,2]
[398258547,1765473072362,-830.5,0.00013698,2]
[398258548,1765473072371,-500.0,0.00013698,2]
[398258549,1765473072382,-910.39,0.00013698,2]
[398258550,1765473072391,-500.0,0.00013698,2]
[398258551,1765473072401,-500.0,0.00013698,2]
[398258552,1765473072411,-558.48037705,0.00013698,2]
[398258553,1765473072421,-15811.29,0.00013698,2]
[398258554,1765473072431,-500.0,0.00013698,2]
[398258555,1765473072440,-862.37,0.00013698,2]
[398258556,1765473072450,-602.31,0.00013698,2]
[398258557,1765473072460,-525.88,0.00013698,2]
[398258558,1765473072469,-500.0,0.00013698,2]
[398258559,1765473072479,-788.03,0.00013698,2]
[398258560,1765473072488,-2726.54,0.00013698,2]
[398258561,1765473072498,-500.0,0.00013698,2]
[398258562,1765473072508,-500.0,0.00013698,2]
[398258563,1765473072518,-500.0,0.00013698,2]
[398258564,1765473072527,-500.0,0.00013698,2]
[398258565,1765473072537,-1792.08,0.00013698,2]
[398258566,1765473072547,-500.0,0.00013698,2]
[398258567,1765473072557,-500.0,0.00013698,2]
[398258568,1765473072567,-500.0,0.00013698,2]
[398258569,1765473072577,-648.27,0.00013698,2]
[398258570,1765473072587,-1464.86,0.00013698,2]
[398258571,1765473072596,-500.0,0.00013698,2]
[398258572,1765473072606,-669.48,0.00013698,2]
[398258573,1765473072615,-2489.03,0.00013698,2]
[398258574,1765473072625,-500.0,0.00013698,2]
[398258575,1765473072634,-500.0,0.00013698,2]
[398258576,1765473072643,-979.89,0.00013698,2]
[398258577,1765473072653,-500.0,0.00013698,2]
[398258578,1765473072662,-2319.1,0.00013698,2]
[398258579,1765473072673,-8021.34,0.00013698,2]
[398258580,1765473072683,-1059.6,0.00013698,2]
[398258581,1765473072693,-748.3,0.00013698,2]
[398258582,1765473072702,-599.31737494,0.00013698,2]
[398258583,1765473072711,-758.49,0.00013698,2]
[398258584,1765473072721,-500.0,0.00013698,2]
[398258585,1765473072730,-500.0,0.00013698,2]
[398258586,1765473072740,-521.79,0.00013698,2]
[398258587,1765473072749,-500.0,0.00013698,2]
[398258588,1765473072759,-500.0,0.00013698,2]
[398258589,1765473072768,-3194.33,0.00013698,2]
[398258590,1765473072778,-1602.59,0.00013698,2]
[398258591,1765473072787,-526.42,0.00013698,2]
[398258592,1765473072797,-246.67740972,0.00013698,2]
[398258593,1765473072807,-1033.03,0.00013698,2]
[398258594,1765473072817,-500.0,0.00013698,2]
[398258595,1765473072826,-3830.81,0.00013698,2]
[398258596,1765473072835,-3830.81,0.00013698,2]
[398258597,1765473072845,-3830.81,0.00013698,2]
[398258598,1765473072854,-3830.81,0.00013698,2]
[398258599,1765473072864,-3830.81,0.00013698,2]
[398258600,1765473072873,-3830.81,0.00013698,2]
[398258601,1765473072883,-3830.81,0.00013698,2]
[398258602,1765473072893,-3830.81,0.00013698,2]
[398258603,1765473072902,-500.0,0.00013698,2]
[398258604,1765473072912,-3830.81,0.00013698,2]
[398258605,1765473072921,-3830.81,0.00013698,2]
[398258606,1765473072932,-3830.81,0.00013698,2]
[398258607,1765473072941,-3830.81,0.00013698,2]
[398258608,1765473072951,-3830.81,0.00013698,2]
[398258609,1765473072961,-3830.81,0.00013698,2]
[398258610,1765473072973,-3830.81,0.00013698,2]
[398258611,1765473072983,-3830.81,0.00013698,2]
[398258612,1765473072992,-3830.81,0.00013698,2]
[398258613,1765473073002,-3830.81,0.00013698,2]
[398258614,1765473073013,-3830.81,0.00013698,2]
[398258615,1765473073022,-500.0,0.00013698,2]
[398258616,1765473073032,-3830.81,0.00013698,2]
[398258617,1765473073042,-3830.81,0.00013698,2]
[398258618,1765473073053,-3830.81,0.00013698,2]
[398258619,1765473073063,-1427.04,0.00013698,2]
[398258620,1765473073072,-3830.81,0.00013698,2]
[398258621,1765473073083,-3830.87975497,0.00013698,2]
[398258622,1765473073093,-237.0422063,0.00013698,2]
[398258623,1765473073104,-1182.82,0.00013698,2]
[398258624,1765473073115,-500.0,0.00013698,2]
[398258625,1765473073125,-503.81,0.00013698,2]
[398258626,1765473073134,-2241.56,0.00013698,2]
[398258627,1765473073144,-2357.55,0.00013698,2]
[398258628,1765473073154,-500.0,0.00013698,2]
[398258629,1765473073163,-500.0,0.00013698,2]
[398258630,1765473073173,-500.0,0.00013698,2]
[398258631,1765473073182,-500.0,0.00013698,2]
[398258632,1765473073192,-500.0,0.00013698,2]
[398258633,1765473073202,-746.51,0.00013698,2]
[398258634,1765473073212,-596.05945133,0.00013698,2]
[398258635,1765473073222,-500.0,0.00013698,2]
[398258636,1765473073232,-502.94,0.00013698,2]
[398258637,1765473073241,-2477.03,0.00013698,2]
[398258638,1765473073251,-16159.61,0.00013698,2]
[398258639,1765473073260,-500.0,0.00013698,2]
[398258640,1765473073269,-500.0,0.00013698,2]
[398258641,1765473073278,-500.0,0.00013698,2]
[398258642,1765473073288,-1020.46,0.00013698,2]
[398258643,1765473073298,-500.0,0.00013698,2]
[398258644,1765473073307,-946.88,0.00013698,2]
[398258645,1765473073317,-500.0,0.00013698,2]
[398258646,1765473073326,-500.0,0.00013698,2]
[398258647,1765473073335,-500.0,0.00013698,2]
[398258648,1765473073346,-929.81,0.00013698,2]
[398258649,1765473073356,-500.0,0.00013698,2]
[398258650,1765473073367,-500.0,0.00013698,2]
[398258651,1765473073377,-1802.15,0.00013698,2]
[398258652,1765473073386,-6470.75,0.00013698,2]
[398258653,1765473073395,-9833.23,0.00013698,2]
[398258654,1765473073406,-500.0,0.00013698,2]
[398258655,1765473073416,-997.71,0.00013698,2]
[398258656,1765473073426,-500.0,0.00013698,2]
[398258657,1765473073435,-500.0,0.00013698,2]
[398258658,1765473073445,-500.0,0.00013698,2]
[398258659,1765473073454,-975.53,0.00013698,2]
[398258660,1765473073464,-711.68,0.00013698,2]
[398258661,1765473073474,-500.0,0.00013698,2]
[398258662,1765473073483,-370.13752115,0.00013698,2]
[398258663,1765473073493,-6461.74,0.00013698,2]
[398258664,1765473073503,-2355.47,0.00013698,2]
[398258665,1765473073513,-500.0,0.00013698,2]
[398258666,1765473073523,-500.0,0.00013698,2]
[398258667,1765473073533,-705.81,0.00013698,2]
[398258668,1765473073543,-1840.07,0.00013698,2]
[398258669,1765473073552,-1427.0,0.00013698,2]
[398258670,1765473073562,-3038.1,0.00013698,2]
[398258671,1765473073572,-500.0,0.00013698,2]
[398258672,1765473073582,-500.0,0.00013698,2]
[398258673,1765473073592,-500.0,0.00013698,2]
[398258674,1765473073601,-3082.36,0.00013698,2]
[398258675,1765473073612,-1002.42,0.00013698,2]
[398258676,1765473073622,-500.0,0.00013698,2]
[398258677,1765473073631,-500.0,0.00013698,2]
[398258678,1765473073641,-500.0,0.00013698,2]
[398258679,1765473073651,-500.0,0.00013698,2]
[398258680,1765473073661,-2274.69,0.00013698,2]
[398258681,1765473073671,-500.0,0.00013698,2]
[398258682,1765473073681,-2058.31,0.00013698,2]
[398258683,1765473073691,-500.0,0.00013698,2]
[398258684,1765473073701,-500.0,0.00013698,2]
[398258685,1765473073711,-543.43,0.00013698,2]
[398258686,1765473073721,-2874.84,0.00013698,2]
[398258687,1765473073732,-1626.08,0.00013698,2]
[398258688,1765473074015,-3909.79,0.00013698,2]
[398258689,1765473074030,-500.0,0.00013698,2]
[398258690,1765473074041,-1213.67,0.00013698,2]
[398258691,1765473074052,-500.0,0.00013698,2]
[398258692,1765473074062,-2466.81,0.00013698,2]
[398258693,1765473074072,-1495.1,0.00013698,2]
[398258694,1765473074081,-2147.35,0.00013698,2]
[398258695,1765473074091,-2767.88,0.00013698,2]
[398258696,1765473074100,-9868.9,0.00013698,2]
[398258697,1765473074110,-737.71,0.00013698,2]
[398258698,1765473074119,-2307.12,0.00013698,2]
[398258699,1765473074128,-2307.12,0.00013698,2]
[398258700,1765473074138,-2307.12,0.00013698,2]
[398258701,1765473074147,-2307.12,0.00013698,2]
[398258702,1765473074156,-2307.12,0.00013698,2]
[398258703,1765473074166,-2307.12,0.00013698,2]
[398258704,1765473074175,-2307.12,0.00013698,2]
[398258705,1765473074184,-2201.84,0.00013698,2]
[398258706,1765473074194,-2307.12,0.00013698,2]
[398258707,1765473074203,-2307.12,0.00013698,2]
[398258708,1765473074212,-2307.12,0.00013698,2]
[398258709,1765473074222,-500.0,0.00013698,2]
[398258710,1765473074231,-2307.12,0.00013698,2]
[398258711,1765473074241,-508.55,0.00013698,2]
[398258712,1765473074250,-2307.12,0.00013698,2]
[398258713,1765473074259,-868.4,0.00013698,2]
[398258714,1765473074269,-2307.12,0.00013698,2]
[398258715,1765473074278,-2307.12,0.00013698,2]
[398258716,1765473074288,-500.0,0.00013698,2]
[398258717,1765473074298,-2307.12,0.00013698,2]
[398258718,1765473074308,-2307.12,0.00013698,2]
[398258719,1765473074319,-2307.12,0.00013698,2]
[398258720,1765473074328,-1593.22,0.00013698,2]
[398258721,1765473074338,-2307.12,0.00013698,2]
[398258722,1765473074348,-642.28,0.00013698,2]
[398258723,1765473074358,-2307.12,0.00013698,2]
[398258724,1765473074367,-2307.12,0.00013698,2]
[398258725,1765473074377,-2307.12,0.00013698,2]
[398258726,1765473074387,-2307.12,0.00013698,2]
[398258727,1765473074396,-2307.12,0.00013698,2]
[398258728,1765473074407,-2307.33508529,0.00013698,2]
[398258729,1765473074416,-500.0,0.00013698,2]
[398258730,1765473074426,-500.0,0.00013698,2]
[398258731,1765473074436,-500.0,0.00013698,2]
[398258732,1765473074446,-513.64,0.00013698,2]
[398258733,1765473074456,-500.0,0.00013698,2]
[398258734,1765473074466,-500.0,0.00013698,2]
[398258735,1765473074477,-1703.23,0.00013698,2]
[398258736,1765473074486,-500.0,0.00013698,2]
[398258737,1765473074496,-3702.43,0.00013698,2]
[398258738,1765473074506,-598.2,0.00013698,2]
[398258739,1765473074515,-3797.02,0.00013698,2]
[398258740,1765473074525,-1310.35,0.00013698,2]
[398258741,1765473074535,-500.0,0.00013698,2]
[398258742,1765473074545,-500.0,0.00013698,2]
[398258743,1765473074555,-500.0,0.00013698,2]
[398258744,1765473074565,-1964.83,0.00013698,2]
[398258745,1765473074575,-2176.01,0.00013698,2]
[398258746,1765473074584,-1191.2,0.00013698,2]
[398258747,1765473074594,-1848.59,0.00013698,2]
[398258748,1765473074604,-3062.71,0.00013698,2]
[398258749,1765473074614,-2486.75,0.00013698,2]
[398258750,1765473074623,-500.0,0.00013698,2]
[398258751,1765473074633,-1358.97,0.00013698,2]
[398258752,1765473074642,-1663.27,0.00013698,2]
[398258753,1765473074652,-500.0,0.00013698,2]
[398258754,1765473074661,-500.0,0.00013698,2]
[398258755,1765473074671,-1044.05,0.00013698,2]
[398258756,1765473074680,-500.0,0.00013698,2]
[398258757,1765473074690,-2993.28,0.00013698,2]
[398258758,1765473074700,-645.89,0.00013698,2]
[398258759,1765473074709,-900.08,0.00013698,2]
[398258760,1765473074718,-585.53530376,0.00013698,2]
[398258761,1765473074728,-546.01,0.00013698,2]
[398258762,1765473074738,-500.0,0.00013698,2]
[398258763,1765473074747,-40715.35,0.00013698,2]
[398258764,1765473074757,-3514.28,0.00013698,2]
[398258765,1765473074767,-500.0,0.00013698,2]
[398258766,1765473074777,-1320.84,0.00013698,2]
[398258767,1765473074786,-1458.76,0.00013698,2]
[398258768,1765473074796,-500.0,0.00013698,2]
[398258769,1765473074806,-1549.69,0.00013698,2]
[398258770,1765473074815,-500.0,0.00013698,2]
[398258771,1765473074824,-7942.46,0.00013698,2]
[398258772,1765473074833,-3763.94,0.00013698,2]
[398258773,1765473074842,-10354.69,0.00013698,2]
[398258774,1765473074851,-937.22,0.00013698,2]
[398258775,1765473074861,-500.0,0.00013698,2]
[398258776,1765473074870,-500.0,0.00013698,2]
[398258777,1765473074879,-501.7003915,0.00013698,2]
[398258778,1765473074888,-500.0,0.00013698,2]
[398258779,1765473074898,-9226.2,0.00013698,2]
[398258780,1765473074907,-783.44,0.00013698,2]
[398258781,1765473074916,-500.0,0.00013698,2]
[398258782,1765473074926,-500.0,0.00013698,2]
[398258783,1765473074936,-538.1,0.00013698,2]
[398258784,1765473074945,-1000.0,0.00013699,2]
[398258785,1765473074955,-812.363151,0.00013699,2]
[398258786,1765473074964,-500.0,0.00013699,2]
[398258787,1765473074978,-166.79,0.000137,2]
[398258788,1765473074987,-360.09,0.000137,2]
[398258789,1765473074996,-1600.0,0.00013726,2]
[398258790,1765473075005,-574.12855637,0.00013768,2]
[398258791,1765473075016,-360.09,0.000138,2]
[398258792,1765473075025,-360.09,0.000138,2]
[398258793,1765473075034,-274.25219097,0.00013821,2]
[398258794,1765473075044,-1083.66007578,0.00013821,2]
[398258795,1765473075055,-1000.0,0.00013821,2]
[398258796,1765473075065,-823.0,0.00013846,2]
[398258797,1765473075074,-38000.0,0.00013893,3]
[398258798,1765473075084,-250.0,0.000139,7]
[398258799,1765473075094,-360.09,0.000139,2]
[398258800,1765473075103,-38000.0,0.00013902,3]
[398258801,1765473075113,-38000.0,0.0001391,3]
[398258802,1765473075122,-38000.0,0.00013919,3]
[398258803,1765473075132,-38000.0,0.00013919,3]
[398258804,1765473075141,-38000.0,0.00013928,3]
[398258805,1765473075151,-38000.0,0.00013928,3]
[398258806,1765473075160,-38000.0,0.00013937,3]
[398258807,1765473075169,-38000.0,0.00013937,3]
[398258808,1765473075179,-38000.0,0.00013946,3]
[398258809,1765473075190,-38000.0,0.00013946,3]
[398258810,1765473075201,-38000.0,0.00013954,3]
[398258811,1765473075210,-38000.0,0.00013954,3]
[398258812,1765473075220,-38000.0,0.00013963,3]
[398258813,1765473075230,-38000.0,0.00013963,3]
[398258814,1765473075239,-38000.0,0.00013963,3]
[398258815,1765473075249,-1608.54,0.00013972,2]
[398258816,1765473075259,-500.0,0.00013972,2]
[398258817,1765473075269,-2302.959549,0.00013972,2]
[398258818,1765473075279,-38000.0,0.00013972,3]
[398258819,1765473075288,-38000.0,0.00013972,3]
[398258820,1765473075298,-500.0,0.00013972,2]
[398258821,1765473075307,-500.0,0.00013972,2]
[398258822,1765473075318,-500.0,0.00013972,2]
[398258823,1765473075327,-500.0,0.00013972,2]
[398258824,1765473075337,-500.0,0.00013972,2]
[398258825,1765473075346,-500.0,0.00013972,2]
[398258826,1765473075356,-935.65,0.00013972,2]
[398258827,1765473075366,-500.0,0.00013972,2]
[398258828,1765473075376,-500.0,0.00013972,2]
[398258829,1765473075386,-500.0,0.00013972,2]
[398258830,1765473075396,-733.38,0.00013972,2]
[398258831,1765473075405,-500.0,0.00013972,2]
[398258832,1765473075415,-500.0,0.00013972,2]
[398258833,1765473075425,-1097.28,0.00013972,2]
[398258834,1765473075435,-500.0,0.00013972,2]
[398258835,1765473075445,-1446.65,0.00013972,2]
[398258836,1765473075454,-878.81,0.00013972,2]
[398258837,1765473075464,-500.0,0.00013972,2]
[398258838,1765473075473,-500.0,0.00013972,2]
[398258839,1765473075482,-500.0,0.00013972,2]
[398258840,1765473075492,-500.0,0.00013972,2]
[398258841,1765473075501,-724.0,0.00013972,2]
[398258842,1765473075510,-500.0,0.00013972,2]
[398258843,1765473075520,-500.0,0.00013972,2]
[398258844,1765473075529,-672.09,0.00013972,2]
[398258845,1765473075539,-540.2,0.00013972,2]
[398258846,1765473075549,-1325.77,0.00013972,2]
[398258847,1765473075558,-500.0,0.00013972,2]
[398258848,1765473075568,-500.0,0.00013972,2]
[398258849,1765473075578,-500.0,0.00013972,2]
[398258850,1765473075588,-921.35,0.00013972,2]
[398258851,1765473075598,-790.82,0.00013972,2]
[398258852,1765473075607,-500.0,0.00013972,2]
[398258853,1765473075616,-1499.79,0.00013972,2]
[398258854,1765473075626,-500.0,0.00013972,2]
[398258855,1765473075636,-500.0,0.00013972,2]
[398258856,1765473075645,-740.19,0.00013972,2]
[398258857,1765473075654,-583.67,0.00013972,2]
[398258858,1765473075664,-500.0,0.00013972,2]
[398258859,1765473075674,-933.59,0.00013972,2]
[398258860,1765473075683,-1548.83,0.00013972,2]
[398258861,1765473075695,-500.0,0.00013972,2]
[398258862,1765473075704,-647.22,0.00013972,2]
[398258863,1765473075714,-500.0,0.00013972,2]
[398258864,1765473075723,-942.57,0.00013972,2]
[398258865,1765473075733,-500.0,0.00013972,2]
[398258866,1765473075743,-500.0,0.00013972,2]
[398258867,1765473075752,-500.0,0.00013972,2]
[398258868,1765473075761,-2824.48,0.00013972,2]
[398258869,1765473075771,-845.83,0.00013972,2]
[398258870,1765473075780,-500.0,0.00013972,2]
[398258871,1765473075789,-500.0,0.00013972,2]
[398258872,1765473075799,-1883.8,0.00013972,2]
[398258873,1765473075808,-542.07,0.00013972,2]
[398258874,1765473075817,-500.0,0.00013972,2]
[398258875,1765473075826,-500.0,0.00013972,2]
[398258876,1765473075836,-626.92,0.00013972,2]
[398258877,1765473075845,-1839.54,0.00013972,2]
[398258878,1765473075855,-500.0,0.00013972,2]
[398258879,1765473075864,-500.0,0.00013972,2]
[398258880,1765473075873,-2829.3,0.00013972,2]
[398258881,1765473075883,-512.17,0.00013972,2]
[398258882,1765473075893,-500.0,0.00013972,2]
[398258883,1765473075902,-700.08,0.00013972,2]
[398258884,1765473075911,-500.0,0.00013972,2]
[398258885,1765473075921,-566.46,0.00013972,2]
[398258886,1765473075931,-500.0,0.00013972,2]
[398258887,1765473075941,-500.0,0.00013972,2]
[398258888,1765473075950,-500.0,0.00013972,2]
[398258889,1765473075960,-1148.61,0.00013972,2]
[398258890,1765473075973,-500.0,0.00013972,2]
[398258891,1765473075982,-863.88,0.00013972,2]
[398258892,1765473075991,-500.0,0.00013972,2]
[398258893,1765473076000,-1156.91,0.00013972,2]
[398258894,1765473076011,-500.0,0.00013972,2]
[398258895,1765473076020,-554.17720825,0.00013972,2]
[398258896,1765473076029,-676.34,0.00013972,2]
[398258897,1765473076039,-661.38,0.00013972,2]
[398258898,1765473076049,-500.0,0.00013972,2]
[398258899,1765473076059,-951.19,0.00013972,2]
[398258900,1765473076069,-500.0,0.00013972,2]
[398258901,1765473076079,-500.0,0.00013972,2]
[398258902,1765473076089,-1268.0,0.00013972,2]
[398258903,1765473076098,-696.06,0.00013972,2]
[398258904,1765473076108,-500.0,0.00013972,2]
[398258905,1765473076118,-532.67,0.00013972,2]
[398258906,1765473076127,-1479.61,0.00013972,2]
[398258907,1765473076137,-1666.57,0.00013972,2]
[398258908,1765473076146,-664.88,0.00013972,2]
[398258909,1765473076156,-571.38,0.00013972,2]
[398258910,1765473076166,-500.0,0.00013972,2]
[398258911,1765473076176,-500.0,0.00013972,2]
[398258912,1765473076186,-500.0,0.00013972,2]
[398258913,1765473076196,-500.0,0.00013972,2]
[398258914,1765473076206,-920.86,0.00013972,2]
[398258915,1765473076216,-500.0,0.00013972,2]
[398258916,1765473076226,-500.0,0.00013972,2]